Cogmind - Beta 14 @@@ ROGUE MODE // 2024.11.09 @ 19:55:23 Player: Tereza Result: Core destroyed Performance ------------- Evolutions (6) 3000 Regions Visited (21) 4200 Robots Destroyed (193) 965 Value Destroyed (6652) 6652 Prototype IDs (16) 320 Alien Tech Used (0) 0 Bonus (1655) 1655 TOTAL SCORE: 16792 Bonus ------- High Alert Combat Kills 167 Follower Combat Kills 890 Met Data Miner 300 Met Warlord at Base 500 MAIN.C Attacked Warlord 500 Friendly Fire -702 Cogmind --------- Core Integrity 0/1150 Matter 20/300 Energy 75/100 System Corruption 6% Temperature Cool (0) Movement Hovering (56) Location -4/Factory Parts ------- > --- POWER (1) -------- (None) > --- PROPULSION (4) --- Improved Gravmag System Improved Gravmag System Improved Gravmag System > --- UTILITY (11) ----- Improved Target Analyzer Layered Medium Armor Plating Layered Medium Armor Plating Hacking Suite Improved Hacking Suite System Shield Improved System Shield > --- WEAPON (3) ------- (None) > --- INVENTORY (5) ---- Antigrav Array Phase Shifter Improved System Shield Peak State ------------ > --- POWER ------------ Neutrino Core > --- PROPULSION ------- Light Treads Improved Treads Improved Treads Improved Treads > --- UTILITY ---------- Advanced Heat Sink High-capacity Storage Unit Core Analyzer Centrium Medium Armor Plating Centrium Medium Armor Plating Medium Regenerative Plating Hacking Suite Improved Hacking Suite Improved System Shield > --- WEAPON ----------- Wave Gun Advanced Variable Charge Gun KE Penetrator > --- INVENTORY -------- Light Nuclear Core Improved Treads Improved Treads Armored Medium Treads Antigrav Array Advanced Heat Sink Advanced Heat Sink Improved Weapon Cycler Hacking Suite System Shield Improved System Shield Improved Arc Projector Advanced Variable Charge Gun Advanced Plasma Cannon KE Penetrator Magnetic Acceleration Cannon Improved Proton Missile Launcher Rocket Launcher Improved Remote Datajack [Rating: 91] Favorites ----------- Power Reinforced Ion Engine Engine Reinforced Ion Engine Power Core Neutrino Core Reactor Light Antimatter Reactor Propulsion Light Treads Treads Light Treads Leg Flexi-carbon Leg Wheel Wheel Hover Unit Improved Gravmag System Flight Unit Improved Flight Unit Utility Hacking Suite Device Advanced Heat Sink Storage High-capacity Storage Unit Processor Signal Interpreter Hackware Hacking Suite Protection Medium Regenerative Plating Weapon Gauss Rifle Energy Gun Advanced Variable Charge Gun Energy Cannon Cooled Plasma Cannon Ballistic Gun Gauss Rifle Ballistic Cannon Light Cannon Launcher Improved Proton Missile Launcher Slashing Weapon Mining Claw Build | -11 -10 -10 -9 -9 -8 -7 -7 -7 -7 -6 -6 -6 -6 -6 -6 -5 -5 -5 -5 -4 -4 ------- Run | Yrd Mat Min Mat Min Mat Fac Low Low Dat Pro Fac Ext Cet Arc Hub Fac Upp Upp War Pro Fac Slots Evolved 12 | . . . 2 . 2 2 . . . . 2 . . . . 2 . . . . 2 Power . | . . . . . . . . . . . . . . . . . . . . . . Propulsion 2 | . . . 1 . 1 . . . . . . . . . . . . . . . . Utility 9 | . . . 1 . 1 2 . . . . 2 . . . . 1 . . . . 2 Weapon 1 | . . . . . . . . . . . . . . . . 1 . . . . . Parts Attached 191 | 6 5 1 11 11 16 9 6 5 . 11 18 27 6 7 1 25 1 . . 9 16 Power 21 | 1 . 1 3 . 1 . 1 . . 2 3 2 . 1 . 3 . . . 1 2 Engine 8 | 1 . . 3 . 1 . . . . 1 2 . . . . . . . . . . Core 11 | . . 1 . . . . 1 . . 1 1 2 . . . 3 . . . . 2 Reactor 2 | . . . . . . . . . . . . . . 1 . . . . . 1 . Propulsion 61 | 2 1 . 5 5 6 4 2 2 . 1 3 12 . 4 1 6 1 . . 2 4 Treads 36 | 2 . . 5 5 5 3 . 1 . 1 . 2 . 4 1 5 1 . . 1 . Leg 9 | . . . . . . . . . . . . 9 . . . . . . . . . Wheel 10 | . 1 . . . 1 1 2 1 . . . 1 . . . 1 . . . 1 1 Hover 3 | . . . . . . . . . . . . . . . . . . . . . 3 Flight 3 | . . . . . . . . . . . 3 . . . . . . . . . . Utility 49 | 1 2 . 2 2 4 3 2 . . 3 6 5 2 2 . 8 . . . 2 5 Device 14 | . . . 1 1 2 1 1 . . 1 1 . 1 . . 2 . . . 2 1 Storage 4 | 1 1 . . . . . . . . . . 1 . . . 1 . . . . . Processor 7 | . 1 . 1 . . 2 . . . . 1 1 . . . 1 . . . . . Hackware 9 | . . . . . 1 . . . . . 3 . . 2 . 1 . . . . 2 Protection 15 | . . . . 1 1 . 1 . . 2 1 3 1 . . 3 . . . . 2 Artifact . | . . . . . . . . . . . . . . . . . . . . . . Weapon 60 | 2 2 . 1 4 5 2 1 3 . 5 6 8 4 . . 8 . . . 4 5 Energy Gun 16 | 2 . . . 1 2 1 . 1 . . 1 2 2 . . 3 . . . . 1 Energy Cannon 3 | . . . . . . . . . . . 1 . . . . . . . . . 2 Ballistic Gun 16 | . 1 . 1 2 2 1 . 1 . 2 . . 1 . . 3 . . . 2 . Ballistic Cannon 8 | . 1 . . . . . . . . . 2 2 . . . . . . . 1 2 Launcher 15 | . . . . . 1 . 1 1 . 3 2 3 1 . . 2 . . . 1 . Special Weapon . | . . . . . . . . . . . . . . . . . . . . . . Impact Weapon . | . . . . . . . . . . . . . . . . . . . . . . Slashing Weapon 2 | . . . . 1 . . . . . . . 1 . . . . . . . . . Piercing Weapon . | . . . . . . . . . . . . . . . . . . . . . . Special Melee Weapon . | . . . . . . . . . . . . . . . . . . . . . . Unidentified Prototypes 5 | . . . . . . . . . . . 1 1 2 . . 1 . . . . . Parts Lost 101 | . . 1 4 7 10 5 6 5 . 3 12 6 3 2 2 8 . . . 10 17 Power 14 | . . 1 1 . 1 . 1 . . 1 2 2 . 1 1 . . . . . 3 Propulsion 39 | . . . 3 3 4 3 2 3 . 1 3 4 2 1 . 4 . . . 4 2 Utility 22 | . . . . 2 2 1 2 1 . 1 2 . . . 1 2 . . . 3 5 Weapon 26 | . . . . 2 3 1 1 1 . . 5 . 1 . . 2 . . . 3 7 Highest Loss Streak 17 | . . 1 1 2 4 5 6 4 . 2 12 4 2 2 2 2 . . . 7 17 To Critical Strikes 1 | . . . . . . . . . . . . 1 . . . . . . . . . Average Slot Usage (%) 92 | . 95 98 92 99 94 85 96 71 84 81 80 96 87 97 99 95 100 100 100 90 76 Engine 3 | . 14 3 7 11 8 7 5 . . . 3 . . . . . . . . . . Core 3 | . . 9 2 . . . 1 7 7 6 2 5 6 . . 4 5 5 5 1 . Treads 18 | . 17 14 32 32 32 19 18 7 15 11 6 2 . 21 26 19 17 17 17 13 7 Leg 2 | . . . . . . . . . . . . 19 13 2 . . . . . . . Wheel 2 | . 10 14 . . 1 6 9 1 7 7 3 . . . . 1 5 5 5 2 . Device 7 | . . . 5 10 14 13 13 . . 2 5 2 3 6 6 4 11 11 11 14 15 Storage 7 | . 14 14 11 11 9 7 7 7 7 7 3 3 6 6 6 5 5 5 5 5 4 Processor 8 | . 10 14 11 7 . 6 15 15 15 15 13 13 8 6 6 8 5 5 5 5 5 Hackware 11 | . . . . . 4 7 7 7 7 7 15 22 20 20 20 19 17 17 17 17 24 Protection 6 | . . . . 3 4 . . 7 7 5 8 10 13 13 13 10 11 11 11 5 . Energy Gun 5 | . 15 . . 2 7 12 12 13 7 1 . 2 5 6 6 8 . . . . . Ballistic Gun 8 | . 9 14 11 11 9 1 . 1 7 12 3 . 5 6 6 6 17 17 17 13 7 Ballistic Cannon 2 | . 3 14 11 5 . . . . . . 2 3 . . . . . . . 2 3 Peak Build Rating 91 | 6 9 11 14 16 26 35 35 36 36 41 51 68 68 71 71 91 85 84 84 85 87 Average Rating 45 | 4 7 10 12 15 21 31 32 25 36 36 40 57 60 66 70 83 84 84 84 79 74 On Entrance 43 | . 6 9 11 14 15 26 35 30 36 36 40 37 68 62 71 57 83 84 84 84 74 Naked Turns . | . . . . . . . . . . . . . . . . . . . . . . Heaviest Build 92 | 12 47 49 57 64 64 58 59 59 56 72 84 44 44 50 50 92 84 84 84 84 75 Greatest Support 96 | 40 40 16 60 60 80 16 30 48 28 28 28 80 80 89 89 96 22 22 22 50 50 Greatest Overweight (x) 22 | . 2 3 3 1 3 5 5 2 1 2 4 3 1 1 . 8 3 3 3 5 22 Average Overweight (x) 1 | . 1 2 . . . 4 4 1 1 1 . . . . . 1 3 3 3 2 . Largest Inventory Capacity 20 | 8 20 20 20 20 20 20 20 20 20 20 20 10 10 10 10 20 20 20 20 20 20 Average Capacity 17 | 7 16 20 20 20 20 20 20 20 20 20 14 8 10 10 10 18 20 20 20 20 18 Most Carried 20 | 6 20 20 20 20 20 20 19 20 20 20 20 10 10 10 10 20 20 20 20 20 15 Average Carried 16 | 4 14 19 19 18 19 17 17 16 20 19 13 7 9 9 10 18 19 20 20 16 12 Final Capacity 20 | 8 20 20 20 20 20 20 20 20 20 20 5 10 10 10 10 20 20 20 20 20 5 Final Carried 20 | 6 20 20 20 20 19 19 15 20 20 19 5 10 10 10 10 20 20 20 20 14 4 Class Distribution -------------------- 40% | Scavenger-Mutant 25% | Mutant 14% | Scavenger-Tank 9% | Scavenger-Gunner 6% | Hacker-Mutant Dominant Class ---------------- Mutant | -10/Materials Mutant | -10/Mines Mutant | -9/Materials Mutant | -9/Mines Scavenger-Mutant | -8/Materials Scavenger-Mutant | -7/Factory Scavenger-Mutant | -7/Lower Caves Scavenger-Mutant | -7/Lower Caves Scavenger-Mutant | -7/Data Miner Scavenger-Mutant | -6/Proximity Caves Hacker-Mutant | -6/Factory Scavenger-Mutant | -6/Extension Scavenger-Mutant | -6/Cetus Scavenger-Mutant | -6/Archives Scavenger-Mutant | -6/Hub_04(d) Scavenger-Gunner | -5/Factory Scavenger-Tank | -5/Upper Caves Scavenger-Tank | -5/Upper Caves Scavenger-Tank | -5/Warlord Scavenger-Gunner | -4/Proximity Caves Scavenger-Gunner | -4/Factory Resources | -11 -10 -10 -9 -9 -8 -7 -7 -7 -7 -6 -6 -6 -6 -6 -6 -5 -5 -5 -5 -4 -4 ----------- Run | Yrd Mat Min Mat Min Mat Fac Low Low Dat Pro Fac Ext Cet Arc Hub Fac Upp Upp War Pro Fac Matter Collected 5297 | 200 98 90 516 730 481 85 94 73 . 307 183 708 274 207 46 509 146 38 . 446 66 Remotely . | . . . . . . . . . . . . . . . . . . . . . . Salvage Created 7996 | . 276 76 708 380 855 182 3 223 . 480 116 1799 402 444 74 1436 209 . . 295 38 Parts 370 | . 24 3 65 8 38 5 . 12 . 11 10 66 12 23 4 73 10 . . 6 . Haulers Intercepted 5 | . 1 . 1 . 1 1 . . . . . . . . . 1 . . . . . Recyclers Shooed 8 | . . . . . 1 . . . . . . 3 . . . 4 . . . . . Parts Field Recycled . | . . . . . . . . . . . . . . . . . . . . . . Retrieved Matter . | . . . . . . . . . . . . . . . . . . . . . . Parts Self-Destructed 39 | . . . . . . . 3 8 . 6 . . . . . . 10 . . 12 . Prevented 2 | . . . . . . . . 2 . . . . . . . . . . . . . Kills | -11 -10 -10 -9 -9 -8 -7 -7 -7 -7 -6 -6 -6 -6 -6 -6 -5 -5 -5 -5 -4 -4 ------- Run | Yrd Mat Min Mat Min Mat Fac Low Low Dat Pro Fac Ext Cet Arc Hub Fac Upp Upp War Pro Fac Combat Hostiles Destroyed 153 | . 10 2 26 21 16 3 1 6 . 7 3 14 3 4 1 24 4 . . 7 1 Guns 101 | . 10 1 15 16 14 3 1 5 . 1 1 2 1 4 1 17 4 . . 5 . Cannons 27 | . . 1 11 5 . . . . . . 1 5 2 . . . . . . 2 . AOE 23 | . . . . . 2 . . 1 . 6 1 7 . . . 6 . . . . . Classes Destroyed 17 | . 6 . 3 1 . . 1 1 . . 1 2 1 . . . . . . 1 . Worker 16 | . 2 . . 2 6 . . . . . . 6 . . . . . . . . . Builder 4 | . . . 1 . . . . . . . . 1 . . . 2 . . . . . Tunneler 1 | . . . . . . . . . . . . 1 . . . . . . . . . Hauler 5 | . 1 . 1 . 1 1 . . . . . . . . . 1 . . . . . Recycler 7 | . . . . . . . . . . . . 6 . . . 1 . . . . . Operator 10 | . 1 . 1 . 1 . . . . . 1 . . 4 . 2 . . . . . Drone 1 | . . . . . . . . . . . . . . . . . . . . 1 . Watcher 9 | . 1 . 4 . 1 . . . . . . 1 1 . . 1 . . . . . Swarmer 41 | . 9 . 13 . 2 . . 3 . 5 . 4 . . . 4 1 . . . . Grunt 53 | . 1 2 8 4 10 2 . 1 . 1 . 8 . . . 10 2 . . 4 . Duelist 4 | . . . 1 1 . 1 . . . . . . . . . 1 . . . . . Sentry 21 | . . . 4 . 4 . . 1 . 1 . 2 . 4 1 2 1 . . . 1 Hunter 10 | . . . . . . . . 1 . . 2 . . . . 5 . . . 2 . Programmer 3 | . . . . . . . . . . . 1 . . . . 2 . . . . . Behemoth 1 | . . . . . . . 1 . . . . . . . . . . . . . . Cetus Guard 3 | . . . . . . . . . . . . . 3 . . . . . . . . Assembled 16 | . . . . 16 . . . . . . . . . . . . . . . . . Thug 1 | . . . . . . . . . . . . 1 . . . . . . . . . Savage 1 | . . . . . . . . . . . . . 1 . . . . . . . . Butcher 2 | . . . . . . . . . . . . . 2 . . . . . . . . Best Kill Streak 10 | . 5 2 6 3 9 2 1 5 . 4 3 8 2 2 1 10 3 . . 4 1 Combat Bots Only 10 | . 4 2 6 3 4 2 1 5 . 4 2 5 2 2 1 10 3 . . 4 1 Max Kills in Single Turn 5 | . 1 1 1 2 4 1 1 1 . 2 1 5 2 1 1 4 1 . . 1 1 Gunslinging 1 | . . . . 1 . . . . . . . . . . . . . . . . . Exploded 4 | . . . . . 1 . . 1 . 2 1 4 . . . 4 . . . . . Melee . | . . . . . . . . . . . . . . . . . . . . . . Uniques/NPCs Destroyed . | . . . . . . . . . . . . . . . . . . . . . . Combat | -11 -10 -10 -9 -9 -8 -7 -7 -7 -7 -6 -6 -6 -6 -6 -6 -5 -5 -5 -5 -4 -4 -------- Run | Yrd Mat Min Mat Min Mat Fac Low Low Dat Pro Fac Ext Cet Arc Hub Fac Upp Upp War Pro Fac Hostile Shots Fired 1445 | . 29 3 128 83 133 20 21 51 . 56 150 114 37 37 25 175 15 . 1 148 219 Missed 430 | . 5 2 44 16 35 4 5 14 . 21 46 44 13 13 11 48 3 . 1 45 60 Damage Taken 18153 | . 263 18 950 992 1587 375 462 422 . 601 1691 1140 698 558 241 2705 180 . 7 1873 3390 Core 3317 | . 91 . 134 194 199 49 109 49 . 91 375 108 37 52 31 334 9 . . 253 1202 Absorbed by Shields 51 | . . . . . . . . . . . . 51 . . . . . . . . . Redirected to Shielding 78 | . . . . . . . . . . . . 31 15 20 12 . . . . . . Ignored by Resistances 208 | . . . . . . . . . . . . . . . . 21 25 . . 150 12 Regen/Repaired (Parts) 890 | . . . . . . . . . . . . 202 42 . . 420 30 . 123 73 . Core Remaining (%) 52 | 100 . 63 . 18 63 . . . . 57 . . . . 29 . . . . 40 . Volleys Fired 597 | . 32 3 73 74 92 22 6 13 . 24 21 50 24 43 1 51 8 . . 39 21 Largest 3 | . 2 2 2 2 2 2 2 2 . 2 2 2 2 2 2 3 3 . . 3 3 Hottest 241 | . 90 55 58 91 88 145 113 130 . 73 105 132 132 110 110 241 89 . . 118 227 Shots Fired 1208 | . 64 6 142 142 181 42 12 25 . 42 32 82 47 73 3 136 26 1 . 116 36 Gun 920 | . 56 3 69 111 177 42 6 24 . 34 13 22 30 73 3 131 26 1 . 89 10 Cannon 240 | . 8 3 73 31 . . . . . . 15 44 15 . . . . . . 25 26 Launcher 48 | . . . . . 4 . 6 1 . 8 4 16 2 . . 5 . . . 2 . Special . | . . . . . . . . . . . . . . . . . . . . . . Kinetic 836 | . 35 6 142 131 107 10 . . . 33 19 44 35 43 2 64 26 1 . 114 24 Thermal 305 | . 24 . . 11 70 32 6 12 . . 9 22 10 30 1 67 . . . . 11 Explosive 30 | . . . . . 4 . 6 1 . 8 4 . . . . 5 . . . 2 . Electromagnetic 37 | . 5 . . . . . . 12 . 1 . 16 2 . . . . . . . 1 Robot Hit Streak 21 | . 3 2 15 8 19 21 16 7 . 10 6 9 8 12 2 10 6 . . 6 3 Robot Miss Streak 8 | . 4 1 4 5 6 4 1 3 . 3 8 3 4 3 1 5 5 . . 6 3 Penetration Max 1 | . . . . . . . . . . . . 1 1 1 . 1 . . . 1 . Secondary Targets 6 | . . . . 1 . . . 1 . . . . . . . 3 1 . . . . Max Gunslinging Chain 1 | . . . . 1 . . . 1 . . . . . . . 1 1 . . . . Shots Hit Robots 738 | . 27 4 104 89 116 28 12 21 . 23 15 47 26 48 2 86 11 . . 59 20 Core Hits 400 | . 16 3 43 45 46 12 10 14 . 17 9 46 14 26 2 63 6 . . 24 4 Critical Kills 25 | . . . . . . . . . . 1 1 10 3 2 . 6 1 . . 1 . Critical Parts Destroyed 25 | . . . 1 . 1 . . . . 1 2 6 4 . . 4 1 . . 4 1 Critical Strikes 67 | . 1 . 4 . 5 2 . 1 . 2 3 17 9 2 . 10 2 . . 5 4 Burn 8 | . 1 . . . 4 2 . . . . . 1 . . . . . . . . . Destroy 53 | . . . 1 . 1 . . . . 2 3 16 9 2 . 10 2 . . 5 2 Blast 5 | . . . 3 . . . . . . . . . . . . . . . . . 2 Corrupt 1 | . . . . . . . . 1 . . . . . . . . . . . . . Melee Attacks 38 | . . . . 17 . . . . . . . 21 . . . . . . . . . Impact . | . . . . . . . . . . . . . . . . . . . . . . Slashing 38 | . . . . 17 . . . . . . . 21 . . . . . . . . . Piercing . | . . . . . . . . . . . . . . . . . . . . . . Sneak Attacks . | . . . . . . . . . . . . . . . . . . . . . . Combat Hostiles . | . . . . . . . . . . . . . . . . . . . . . . Follow-up Attacks . | . . . . . . . . . . . . . . . . . . . . . . Damage Inflicted 19367 | . 341 54 1824 1336 2239 617 411 425 . 842 652 2393 701 1169 88 3570 253 . . 1687 765 Guns 11229 | . 247 17 961 1022 1881 617 168 397 . 329 111 335 378 1169 88 2214 253 . . 920 122 Cannons 3575 | . 94 37 863 314 . . . . . . 312 558 266 . . . . . . 540 591 Explosions 4485 | . . . . . 358 . 243 28 . 513 229 1500 57 . . 1330 . . . 227 . Melee . | . . . . . . . . . . . . . . . . . . . . . . Ramming 78 | . . . . . . . . . . . . . . . . 26 . . . . 52 Kinetic 9892 | . 166 54 1824 1236 1116 94 . . . 329 179 558 561 580 51 1007 253 . . 1460 424 Thermal 5045 | . 151 . . 100 765 523 168 269 . . 244 634 83 589 37 1207 . . . . 275 Explosive 2843 | . . . . . 358 . 243 28 . 513 229 . . . . 1245 . . . 227 . Electromagnetic 1509 | . 24 . . . . . . 128 . . . 1201 57 . . 85 . . . . 14 Impact . | . . . . . . . . . . . . . . . . . . . . . . Slashing . | . . . . . . . . . . . . . . . . . . . . . . Piercing . | . . . . . . . . . . . . . . . . . . . . . . Highest Corruption 7 | . 1 1 . 3 . . . . . . 1 1 1 1 1 7 7 7 7 . 6 Average Corruption 2 | . 1 1 . 2 . . . . . . 1 1 1 1 1 6 7 7 7 . 4 Corruption Purged . | . . . . . . . . . . . . . . . . . . . . . . Corruption Blocked . | . . . . . . . . . . . . . . . . . . . . . . Effects 92 | . 3 2 . 14 . . . . . . . 8 6 2 4 29 10 11 2 . 1 Message Errors 18 | . . 1 . 4 . . . . . . . 2 1 . 1 9 . . . . . Matter Fused 14 | . 1 . . 3 . . . . . . . . 1 . 1 3 1 4 . . . Heat Flow Errors 12 | . 2 . . 3 . . . . . . . 3 1 . . . 1 1 . . 1 Energy Discharges 10 | . . 1 . . . . . . . . . 1 . . . 5 1 2 . . . Parts Rejected 1 | . . . . . . . . . . . . . . . . 1 . . . . . Parts Fused 4 | . . . . . . . . . . . . . . . . 2 . 2 . . . Data Loss (minor) 17 | . . . . 4 . . . . . . . 2 2 1 1 4 . 1 2 . . Data Loss (major) 4 | . . . . . . . . . . . . . 1 . . 1 2 . . . . Misfires 7 | . . . . . . . . . . . . . . 1 1 1 3 1 . . . Alerts 4 | . . . . . . . . . . . . . . . . 3 1 . . . . Weapon Failures 1 | . . . . . . . . . . . . . . . . . 1 . . . . Overload Shots 1 | . . . . . . . . . . . 1 . . . . . . . . . . Overflow Damage 185 | . . . 1 6 . . . . . 34 15 44 . . . 50 . . . . 35 Projectiles 77 | . . . 1 6 . . . . . . 15 20 . . . . . . . . 35 Explosions 108 | . . . . . . . . . . 34 . 24 . . . 50 . . . . . Melee . | . . . . . . . . . . . . . . . . . . . . . . Knockbacks 28 | . . 1 13 2 . . . . . . 1 4 . . . . . . . 4 3 Impact . | . . . . . . . . . . . . . . . . . . . . . . Kinetic 27 | . . 1 12 2 . . . . . . 1 4 . . . . . . . 4 3 Secondary 1 | . . . 1 . . . . . . . . . . . . . . . . . . Self-Inflicted Damage 439 | . . . . . 74 . . . . 149 . 23 3 . . 147 . . . 18 25 Shots 16 | . . . . . 3 . . . . 5 . 2 1 . . 4 . . . 1 . Rammed 12 | . . . . . . . . . . . . . . . . 3 . . . . 9 Targets Rammed 12 | . . . . . . . . . . . . . . . . 3 . . . . 9 Kicked . | . . . . . . . . . . . . . . . . . . . . . . Crushed . | . . . . . . . . . . . . . . . . . . . . . . Highest Temperature 376 | . 253 14 21 272 156 77 21 317 . 39 372 351 264 1 . 376 234 269 . 319 193 Average Temperature 87 | . 64 5 9 90 41 32 9 111 . 8 143 109 121 1 . 143 51 144 . 84 67 Received Heat Transfer 4488 | . 18 9 285 456 810 108 60 51 . 96 382 366 135 81 87 354 54 . . 461 675 Effects 17 | . 1 . . 3 . . . 1 . . . 6 . . . 3 . 3 . . . Shutdowns 2 | . . . . . . . . . . . . 1 . . . 1 . . . . . Energy Bleed 3 | . 1 . . 1 . . . . . . . 1 . . . . . . . . . Interference 11 | . . . . 2 . . . 1 . . . 3 . . . 2 . 3 . . . Damage (minor) 1 | . . . . . . . . . . . . 1 . . . . . . . . . Siege Activations . | . . . . . . . . . . . . . . . . . . . . . . Robots Corrupted 1 | . . . . . . . . . . . . 1 . . . . . . . . . Combat Hostiles . | . . . . . . . . . . . . . . . . . . . . . . Parts Fried 10 | . . . . . . . . . . . . 9 . . . 1 . . . . . Impact Corruptions . | . . . . . . . . . . . . . . . . . . . . . . Robots Melted 3 | . . . . . . 1 . . . . . . . . . 1 . . . . 1 Combat Hostiles 2 | . . . . . . . . . . . . . . . . 1 . . . . 1 Parts Melted 17 | . 3 . . . 5 4 . . . . . 1 . . . 3 . . . . 1 Heat Transferred 9338 | . 518 . . 259 2072 1316 350 600 . . 367 979 148 777 37 1554 . . . . 361 Parts Sabotaged . | . . . . . . . . . . . . . . . . . . . . . . Parts Stolen . | . . . . . . . . . . . . . . . . . . . . . . Parts Stripped . | . . . . . . . . . . . . . . . . . . . . . . Power Chain Reactions 9 | . . . . . . . . . . . . 9 . . . . . . . . . Alert | -11 -10 -10 -9 -9 -8 -7 -7 -7 -7 -6 -6 -6 -6 -6 -6 -5 -5 -5 -5 -4 -4 ------- Run | Yrd Mat Min Mat Min Mat Fac Low Low Dat Pro Fac Ext Cet Arc Hub Fac Upp Upp War Pro Fac Peak Influence 508 | . 166 46 494 312 288 238 . . . . 91 291 177 191 60 508 . . . . 484 Initial 484 | . . . 17 192 . 130 . . . . 37 44 89 . . 19 . . . . 484 Average 148 | . 74 35 259 76 153 206 . . . . 61 138 91 106 26 240 . . . . 376 Maximum Alert Level 2 | . . . 2 1 1 1 . . . . . 1 . . . 2 . . . . 2 Low Security (%) 69 | 100 100 100 33 80 74 21 . . . . 100 72 100 100 100 41 . . . . 17 Level 1 21 | . . . 44 19 25 78 . . . . . 27 . . . 29 . . . . 23 Level 2 8 | . . . 21 . . . . . . . . . . . . 28 . . . . 58 Level 3 . | . . . . . . . . . . . . . . . . . . . . . . Level 4 . | . . . . . . . . . . . . . . . . . . . . . . Level 5 . | . . . . . . . . . . . . . . . . . . . . . . High Security . | . . . . . . . . . . . . . . . . . . . . . . Max Security . | . . . . . . . . . . . . . . . . . . . . . . Squads Dispatched 14 | . 1 . 2 . 1 1 . . . . 1 1 . . . 6 . . . . 1 Investigation 1 | . . . 1 . . . . . . . . . . . . . . . . . . Extermination 2 | . . . . . . . . . . . . . . . . 1 . . . . 1 Reinforcement 8 | . 1 . 1 . 1 1 . . . . 1 1 . . . 2 . . . . . Assault . | . . . . . . . . . . . . . . . . . . . . . . Garrison 3 | . . . . . . . . . . . . . . . . 3 . . . . . Intercept . | . . . . . . . . . . . . . . . . . . . . . . Searches Triggered 1 | . . . . . . . . . . . . . . . . . . . . . 1 Construction Impeded 2 | . . . . . . . . . . . . 1 . . . 1 . . . . . Haulers Reinforced 1 | . . . . . . 1 . . . . . . . . . . . . . . . Active Scanning Responses . | . . . . . . . . . . . . . . . . . . . . . . Cargo Convoy Interrupts 1 | . . . . . . . . . . . . . . . . 1 . . . . . Stealth | -11 -10 -10 -9 -9 -8 -7 -7 -7 -7 -6 -6 -6 -6 -6 -6 -5 -5 -5 -5 -4 -4 --------- Run | Yrd Mat Min Mat Min Mat Fac Low Low Dat Pro Fac Ext Cet Arc Hub Fac Upp Upp War Pro Fac Distress Signals 9 | . 1 . . . 2 . . . . . . 2 1 . . 2 . . 1 . . Communications Jammed . | . . . . . . . . . . . . . . . . . . . . . . Distress Signals . | . . . . . . . . . . . . . . . . . . . . . . Times Spotted 292 | . 20 2 38 24 31 7 1 6 . 7 12 35 6 22 5 36 4 . 7 11 18 Peak Tracking Total 10 | . 6 2 7 3 4 4 1 3 . 4 4 6 5 2 4 7 3 . 6 4 10 Tactical Retreats 16 | . 1 . 2 1 2 . . . . . 2 2 . . . 2 1 . . . 3 Traps | -11 -10 -10 -9 -9 -8 -7 -7 -7 -7 -6 -6 -6 -6 -6 -6 -5 -5 -5 -5 -4 -4 ------- Run | Yrd Mat Min Mat Min Mat Fac Low Low Dat Pro Fac Ext Cet Arc Hub Fac Upp Upp War Pro Fac Traps Triggered 7 | . 3 . 1 . . . . . . . 2 . . . . 1 . . . . . Indirectly . | . . . . . . . . . . . . . . . . . . . . . . Trap Hack Attempts . | . . . . . . . . . . . . . . . . . . . . . . Triggered . | . . . . . . . . . . . . . . . . . . . . . . Disarmed . | . . . . . . . . . . . . . . . . . . . . . . Reprogrammed . | . . . . . . . . . . . . . . . . . . . . . . Reused . | . . . . . . . . . . . . . . . . . . . . . . Traps Extracted . | . . . . . . . . . . . . . . . . . . . . . . Installed . | . . . . . . . . . . . . . . . . . . . . . . Triggered 9 | . . . . . . . . . . . . . . . . 1 . . 8 . . Most Traps Carried 3 | . . 3 3 2 2 . . . . . . . . . . . . . . . . Machines | -11 -10 -10 -9 -9 -8 -7 -7 -7 -7 -6 -6 -6 -6 -6 -6 -5 -5 -5 -5 -4 -4 ---------- Run | Yrd Mat Min Mat Min Mat Fac Low Low Dat Pro Fac Ext Cet Arc Hub Fac Upp Upp War Pro Fac Machines Disabled 26 | . . . . . 3 . . . . . 1 6 1 5 . 10 . . . . . Max in Single Turn 7 | . . . . . 3 . . . . . 1 2 1 1 . 7 . . . . . Garrison Access 1 | . . . . . . . . . . . 1 . . . . . . . . . . Machines Repaired . | . . . . . . . . . . . . . . . . . . . . . . Machines Dismantled . | . . . . . . . . . . . . . . . . . . . . . . Machines Sabotaged . | . . . . . . . . . . . . . . . . . . . . . . Overloaded Fab Kills . | . . . . . . . . . . . . . . . . . . . . . . Hacking | -11 -10 -10 -9 -9 -8 -7 -7 -7 -7 -6 -6 -6 -6 -6 -6 -5 -5 -5 -5 -4 -4 --------- Run | Yrd Mat Min Mat Min Mat Fac Low Low Dat Pro Fac Ext Cet Arc Hub Fac Upp Upp War Pro Fac Machines Accessed 37 | . 5 1 3 . 5 1 . . 4 . 3 4 2 1 1 7 . . . . . Terminals 30 | . 5 1 3 . 5 1 . . . . 2 4 2 . 1 6 . . . . . Fabricators 1 | . . . . . . . . . . . . . . . . 1 . . . . . Repair Stations . | . . . . . . . . . . . . . . . . . . . . . . Recycling Units . | . . . . . . . . . . . . . . . . . . . . . . Scanalyzers . | . . . . . . . . . . . . . . . . . . . . . . Garrison Access 1 | . . . . . . . . . . . 1 . . . . . . . . . . Total Hacks 104 | . 7 1 8 . 10 2 . . 29 . 4 14 4 6 1 18 . . . . . Successful 67 | . 3 1 3 . 3 . . . 29 . 4 9 3 6 . 6 . . . . . Failed 35 | . 3 . 4 . 7 2 . . . . . 5 1 . 1 12 . . . . . Catastrophic 9 | . 1 . . . 4 1 . . . . . . . . 1 2 . . . . . Database Lockouts 2 | . 1 . 1 . . . . . . . . . . . . . . . . . . Manual 47 | . 10 1 10 . 10 . . . . . 1 7 . . 1 7 . . . . . Terminals 66 | . 7 1 8 . 10 2 . . . . 3 14 4 . 1 16 . . . . . Fabricators 2 | . . . . . . . . . . . . . . . . 2 . . . . . Repair Stations . | . . . . . . . . . . . . . . . . . . . . . . Recycling Units . | . . . . . . . . . . . . . . . . . . . . . . Scanalyzers . | . . . . . . . . . . . . . . . . . . . . . . Garrison Access 1 | . . . . . . . . . . . 1 . . . . . . . . . . Terminal Hacks 64 | . 3 1 2 . 3 . . . 29 . 3 9 3 6 . 5 . . . . . Record 20 | . 1 . . . . . . . 11 . . . 2 6 . . . . . . . Part Schematic 12 | . . . . . . . . . 10 . . 2 . . . . . . . . . Robot Schematic 5 | . . . . . . . . . 5 . . . . . . . . . . . . Robot Analysis 12 | . 1 1 2 . 2 . . . . . . 5 . . . 1 . . . . . Prototype ID Bank 3 | . . . . . . . . . 3 . . . . . . . . . . . . Open Door 1 | . . . . . . . . . . . . . 1 . . . . . . . . Branch Access Points 3 | . . . . . 1 . . . . . 1 . . . . 1 . . . . . Alert Level 2 | . . . . . . . . . . . 1 . . . . 1 . . . . . Unreport Threat 3 | . . . . . . . . . . . . 2 . . . 1 . . . . . Recall Extermination 1 | . . . . . . . . . . . . . . . . 1 . . . . . Zone Layout 2 | . 1 . . . . . . . . . 1 . . . . . . . . . . Fabricator Hacks . | . . . . . . . . . . . . . . . . . . . . . . Repair Station Hacks . | . . . . . . . . . . . . . . . . . . . . . . Recycling Unit Hacks . | . . . . . . . . . . . . . . . . . . . . . . Scanalyzer . | . . . . . . . . . . . . . . . . . . . . . . Garrison Access Hacks 1 | . . . . . . . . . . . 1 . . . . . . . . . . Seal Access 1 | . . . . . . . . . . . 1 . . . . . . . . . . Unauthorized Hacks 2 | . . . 1 . . . . . . . . . . . . 1 . . . . . Terminals 2 | . . . 1 . . . . . . . . . . . . 1 . . . . . Track 1 | . . . . . . . . . . . . . . . . 1 . . . . . Botnet 1 | . . . 1 . . . . . . . . . . . . . . . . . . Fabricators . | . . . . . . . . . . . . . . . . . . . . . . Repair Stations . | . . . . . . . . . . . . . . . . . . . . . . Recycling Units . | . . . . . . . . . . . . . . . . . . . . . . Scanalyzers . | . . . . . . . . . . . . . . . . . . . . . . Garrison Access . | . . . . . . . . . . . . . . . . . . . . . . Data Cores Recovered 1 | . . . . . . . . . . . . . . . . 1 . . . . . Used 1 | . . . . . . . . . . . . . . . . 1 . . . . . Hacking Detections 22 | . 3 . 2 . 4 1 . . . . 2 2 1 . 1 6 . . . . . Full Trace Events . | . . . . . . . . . . . . . . . . . . . . . . Feedback Events . | . . . . . . . . . . . . . . . . . . . . . . Feedback Blocked . | . . . . . . . . . . . . . . . . . . . . . . Robot Schematics Acquired 5 | . . . . . . . . . 5 . . . . . . . . . . . . Robots Built . | . . . . . . . . . . . . . . . . . . . . . . Authchips . | . . . . . . . . . . . . . . . . . . . . . . Time . | . . . . . . . . . . . . . . . . . . . . . . Total Robot Build Rating . | . . . . . . . . . . . . . . . . . . . . . . Part Schematics Acquired 12 | . . . . . . . . . 10 . . 2 . . . . . . . . . Parts Built . | . . . . . . . . . . . . . . . . . . . . . . Authchips . | . . . . . . . . . . . . . . . . . . . . . . Time . | . . . . . . . . . . . . . . . . . . . . . . Total Part Build Rating . | . . . . . . . . . . . . . . . . . . . . . . Parts Repaired . | . . . . . . . . . . . . . . . . . . . . . . Time . | . . . . . . . . . . . . . . . . . . . . . . Parts Recycled . | . . . . . . . . . . . . . . . . . . . . . . Recycled Matter . | . . . . . . . . . . . . . . . . . . . . . . Retrieved Matter . | . . . . . . . . . . . . . . . . . . . . . . Retrieved Components . | . . . . . . . . . . . . . . . . . . . . . . Parts Scanalyzed . | . . . . . . . . . . . . . . . . . . . . . . Part Schematics Acquired . | . . . . . . . . . . . . . . . . . . . . . . Parts Damaged . | . . . . . . . . . . . . . . . . . . . . . . Bothacking | -11 -10 -10 -9 -9 -8 -7 -7 -7 -7 -6 -6 -6 -6 -6 -6 -5 -5 -5 -5 -4 -4 ------------ Run | Yrd Mat Min Mat Min Mat Fac Low Low Dat Pro Fac Ext Cet Arc Hub Fac Upp Upp War Pro Fac Used RIF Installer . | . . . . . . . . . . . . . . . . . . . . . . Robots Hacked . | . . . . . . . . . . . . . . . . . . . . . . Non-combat . | . . . . . . . . . . . . . . . . . . . . . . Combat . | . . . . . . . . . . . . . . . . . . . . . . Robot Hacks Applied . | . . . . . . . . . . . . . . . . . . . . . . Relay Couplers Released . | . . . . . . . . . . . . . . . . . . . . . . Fabnet Peak Effective % . | . . . . . . . . . . . . . . . . . . . . . . Robots Rewired 15 | . . . . . . 1 . . . . . 14 . . . . . . . . . Allies Hacked . | . . . . . . . . . . . . . . . . . . . . . . Hacks Repelled . | . . . . . . . . . . . . . . . . . . . . . . Allies | -11 -10 -10 -9 -9 -8 -7 -7 -7 -7 -6 -6 -6 -6 -6 -6 -5 -5 -5 -5 -4 -4 -------- Run | Yrd Mat Min Mat Min Mat Fac Low Low Dat Pro Fac Ext Cet Arc Hub Fac Upp Upp War Pro Fac Total Allies 23 | . . . . . . 1 . . . . . 22 . . . . . . . . . Largest Group 12 | . . . . . . 1 . . . . . 12 4 . . . . . . . . Highest-Rated Group 493 | . . . . . . 16 . . . . . 493 95 . . . . . . . . Highest-Rated Ally 159 | . . . . . . 16 . . . . . 159 25 . . . . . . . . Total Orders . | . . . . . . . . . . . . . . . . . . . . . . Ally Attacks 201 | . . . . . . 15 . . . . . 174 12 . . . . . . . . Total Damage 3767 | . . . . . . 182 . . . . . 3301 284 . . . . . . . . Kills 23 | . . . . . . 3 . . . . . 19 1 . . . . . . . . Allies Corrupted . | . . . . . . . . . . . . . . . . . . . . . . Allies Melted 1 | . . . . . . . . . . . . 1 . . . . . . . . . Intel | -11 -10 -10 -9 -9 -8 -7 -7 -7 -7 -6 -6 -6 -6 -6 -6 -5 -5 -5 -5 -4 -4 ------- Run | Yrd Mat Min Mat Min Mat Fac Low Low Dat Pro Fac Ext Cet Arc Hub Fac Upp Upp War Pro Fac Robot Analysis Total 11 | . 1 1 2 . 2 . . . . . . 5 . . . . . . . . . Derelict Logs Recovered 11 | . . 2 . 2 . . . 1 . 1 . . . . . . 2 1 . 2 . Drone Launches . | . . . . . . . . . . . . . . . . . . . . . . Drone Recoveries . | . . . . . . . . . . . . . . . . . . . . . . Exploration | -11 -10 -10 -9 -9 -8 -7 -7 -7 -7 -6 -6 -6 -6 -6 -6 -5 -5 -5 -5 -4 -4 ------------- Run | Yrd Mat Min Mat Min Mat Fac Low Low Dat Pro Fac Ext Cet Arc Hub Fac Upp Upp War Pro Fac Turns Passed 15596 | 86 809 316 950 2070 1197 323 680 859 89 626 382 1688 612 443 206 1620 371 414 598 770 487 Spaces Moved 8554 | 48 486 209 416 985 531 143 466 283 78 457 434 1040 284 193 117 752 264 287 478 382 221 Core 58 | 4 . . . . . . . . . . 6 2 . . . . . . . . 46 Treads 3337 | 44 127 . 412 985 396 . . 239 . . . 14 . 181 117 561 . . . 128 133 Legs 1208 | . . . . . . . . . . . . 912 284 12 . . . . . . . Wheels 3494 | . 359 209 4 . 135 143 466 44 78 457 115 . . . . 191 264 287 478 254 10 Hover 32 | . . . . . . . . . . . . . . . . . . . . . 32 Flight 425 | . . . . . . . . . . . 313 112 . . . . . . . . . Fastest Speed 34 | 50 130 130 145 160 145 145 95 95 115 115 34 34 120 160 160 125 125 125 125 125 50 Average Speed 150 | 150 137 139 163 179 157 152 140 282 115 119 64 123 185 162 160 178 125 125 125 170 177 Slowest Speed 1150 | 160 160 145 320 240 240 155 155 320 115 130 314 260 190 240 160 245 125 125 125 245 1150 Overloaded Moves . | . . . . . . . . . . . . . . . . . . . . . . Propulsion Burnouts . | . . . . . . . . . . . . . . . . . . . . . . Robots Hopped 5 | . . . . . . . . . . . 4 1 . . . . . . . . . Cave-ins Triggered . | . . . . . . . . . . . . . . . . . . . . . . Exploration Rate (%) 49 | 4 87 55 50 98 36 4 64 47 68 58 17 88 80 93 11 25 41 44 55 57 8 Regions Visited 21 Branch Regions 14 Pre-discovered Areas 4 | . . 1 . . . . . . 1 . . . . . . . 1 . . 1 . Known Exits Taken 9 | . . . . 1 1 1 1 1 1 1 1 . . . . 1 . . . . . Unknown Exits Taken 12 | 1 1 1 1 . . . . . . . . 1 1 1 1 . 1 1 1 1 . Scrap Searched 10 | . . 1 . 2 . . 2 2 . 1 . . . . . . 1 1 . . . Spaces Dug 25 | . . . . 10 . . . . . 12 . . . . . . . . . 3 . Terrain Destroyed 313 | . . . . 10 68 . 11 5 . 40 14 42 4 7 . 74 5 . . 27 6 Melee 10 | . . . . 10 . . . . . . . . . . . . . . . . . Projectile 78 | . . . . . . . . . . . 2 17 4 7 . 16 5 . . 21 6 AOE 225 | . . . . . 68 . 11 5 . 40 12 25 . . . 58 . . . 6 . Terrain Rammed . | . . . . . . . . . . . . . . . . . . . . . . Walls Destroyed . | . . . . . . . . . . . . . . . . . . . . . . Machines Disabled . | . . . . . . . . . . . . . . . . . . . . . . Actions | -11 -10 -10 -9 -9 -8 -7 -7 -7 -7 -6 -6 -6 -6 -6 -6 -5 -5 -5 -5 -4 -4 --------- Run | Yrd Mat Min Mat Min Mat Fac Low Low Dat Pro Fac Ext Cet Arc Hub Fac Upp Upp War Pro Fac Total 10106 | 59 570 229 552 1122 724 202 477 312 77 497 500 1326 323 251 134 926 288 342 478 430 287 Wait 375 | . 16 8 24 16 40 20 . 4 . . 3 93 . . 15 57 11 56 . . 12 Move 8523 | 47 485 208 415 984 530 142 465 282 77 456 425 1037 283 192 116 751 263 286 477 381 221 Hop 5 | . . . . . . . . . . . 4 1 . . . . . . . . . Pick Up 168 | 6 21 5 14 12 26 8 . 7 . 2 6 17 5 6 . 25 2 . . 1 5 Fast Attach 67 | 6 3 . 4 3 3 1 2 2 . 3 5 14 2 2 . 10 . . . . 7 Attach 74 | . 1 1 2 6 9 8 4 1 . 2 10 3 1 3 . 7 . . . 7 9 Detach 10 | . 2 . . . . . . . . 1 2 2 . 1 . 1 . . . . 1 Swap 50 | . 1 . 5 2 4 . . 2 . 6 3 10 3 2 1 8 1 . . 2 . Drop 111 | . 9 4 15 8 20 . . 1 . 3 6 18 5 2 1 13 3 . . . 3 Fire 597 | . 32 3 73 74 92 22 6 13 . 24 21 50 24 43 1 51 8 . . 39 21 Melee 38 | . . . . 17 . . . . . . . 21 . . . . . . . . . Ram 11 | . . . . . . . . . . . . . . . . 3 . . . . 8 Kick . | . . . . . . . . . . . . . . . . . . . . . . Crush . | . . . . . . . . . . . . . . . . . . . . . . Escape Stasis 15 | . . . . . . . . . . . 15 . . . . . . . . . . Rewire 62 | . . . . . . 1 . . . . . 60 . . . . . . 1 . . Trap . | . . . . . . . . . . . . . . . . . . . . . . Miscellaneous . | . . . . . . . . . . . . . . . . . . . . . . Route ------- -11/Scrapyard -10/Materials (discovered 4 exits: *Mat x3 / *Min) -10/Mines -9/Materials (discovered 2 exits: Mat / [*Min]) -9/Mines (discovered 2 exits: *Mat x2) -8/Materials (discovered 2 exits: *Fac x2) -7/Factory -7/Lower Caves -7/Lower Caves (discovered 2 exits: *Fac / *Dat) -7/Data Miner -6/Proximity Caves -6/Factory (discovered 4 exits: Low x2 / *Ext x2) -6/Extension (discovered 2 exits: *Fac / *Cet) -6/Cetus (discovered 2 exits: *Fac / *Arc) -6/Archives (discovered 3 exits: *Fac / *Hub x2) -6/Hub_04(d) (discovered 2 exits: *Fac x2) -5/Factory (discovered 2 exits: *Upp x2) -5/Upper Caves -5/Upper Caves (discovered 2 exits: [*Fac] / [*War]) -5/Warlord -4/Proximity Caves -4/Factory (discovered 1 exit: Res) History --------- Turn | Location | Event 18 | -11/Scrapyard | Discovered new exit (range 16) 87 | -11/Scrapyard | Entered Materials 267 | -10/Materials | Discovered new exit (range 6) 333 | -10/Materials | Build established: Mutant 401 | -10/Materials | Discovered new exit (range 16) 574 | -10/Materials | Discovered new exit (range 13) 671 | -10/Materials | Central database locked down 871 | -10/Materials | Discovered new exit (range 11) 896 | -10/Materials | Entered Mines 926 | -10/Mines | Learned location of Storage (-7) 933 | -10/Mines | Learned location of 1 exit from Materials 998 | -10/Mines | Learned 4 Materials zone layouts 1035 | -10/Mines | Found a hidden stash of uninstalled traps 1187 | -10/Mines | Discovered new exit (range 16) 1212 | -10/Mines | Entered Materials 1212 | -9/Materials | Evolved 2 slots: Propulsion x1, Utility x1 1213 | -9/Materials | Identified exit to Materials 1587 | -9/Materials | Central database locked down 2142 | -9/Materials | Discovered new exit (range 12) 2162 | -9/Materials | Entered Mines 2246 | -9/Mines | Discovered exit to Materials (range 15) 2262 | -9/Mines | Learned location of 1 exit from Materials 2466 | -9/Mines | Learned Materials stockpile data 2493 | -9/Mines | Discovered exit to Materials (range 16) 2517 | -9/Mines | Joined a pair of Derelicts in attacking an 0b10 outpost 2831 | -9/Mines | Build established: Scavenger-Mutant 2853 | -9/Mines | Assembled infested the area 2858 | -9/Mines | Assisted by a Guerilla fighting off Assembled 3134 | -9/Mines | Core integrity fell below 50% 3590 | -9/Mines | Core integrity fell below 20% 3809 | -9/Mines | Build established: Mutant 4232 | -9/Mines | Entered Materials 4232 | -8/Materials | Evolved 2 slots: Propulsion x1, Utility x1 4233 | -8/Materials | Identified exit to Factory 4925 | -8/Materials | Build established: Scavenger-Mutant 5289 | -8/Materials | Lost 4 parts (1p2n1w) 5388 | -8/Materials | Discovered exit to Factory (range 16) 5429 | -8/Materials | Entered Factory 5429 | -7/Factory | Evolved 2 slots: Utility x2 5547 | -7/Factory | Lost 5 parts (3n1u1w) 5709 | -7/Factory | Discovered new exit (range 7) 5750 | -7/Factory | Identified exit to Lower Caves 5752 | -7/Factory | Entered Lower Caves 6038 | -7/Lower Caves | Spotted B-75 Beast 6263 | -7/Lower Caves | Destroyed B-75 Beast 6294 | -7/Lower Caves | Lost 6 parts (1p2n2u1w) 6396 | -7/Lower Caves | Discovered new exit (range 8) 6403 | -7/Lower Caves | Identified exit to Lower Caves 6432 | -7/Lower Caves | Entered another Lower Caves area 6457 | -7/Lower Caves | Discovered new exit (range 11) 6468 | -7/Lower Caves | Attracted the attention of an 0b10 checkpoint 6523 | -7/Lower Caves | Lost 4 parts (3n1u) 6967 | -7/Lower Caves | Identified exit to Data Miner 7212 | -7/Lower Caves | Encountered a Warlord checkpoint 7231 | -7/Lower Caves | Found DCF Scrap (11 items) 7291 | -7/Lower Caves | Entered Data Miner 7291 | -7/Data Miner | Discovered new exit (range 6) 7313 | -7/Data Miner | Met Data Miner 7336 | -7/Data Miner | Learned location of Section 7 (-2) 7336 | -7/Data Miner | Acquired the access code to Warlord's prototype stash 7355 | -7/Data Miner | Received God Mode back door access code from Data Miner 7379 | -7/Data Miner | Identified exit to Proximity Caves 7380 | -7/Data Miner | Entered Proximity Caves 7570 | -6/Proximity Caves | Learned Factory terminal intel 7948 | -6/Proximity Caves | Attracted the attention of an 0b10 checkpoint 7999 | -6/Proximity Caves | Discovered new exit (range 7) 8005 | -6/Proximity Caves | Identified exit to Factory 8006 | -6/Proximity Caves | Entered Factory 8006 | -6/Factory | Evolved 2 slots: Utility x2 8007 | -6/Factory | Loaded intel: 27 terminal locations 8093 | -6/Factory | Build established: Derelict-Mutant 8105 | -6/Factory | Identified exit to Lower Caves 8105 | -6/Factory | Identified exit to Extension 8172 | -6/Factory | Spotted B-75 Beast 8270 | -6/Factory | Lost 12 parts (2p3n2u5w) 8388 | -6/Factory | Entered Extension 8400 | -6/Extension | Rescued a captive Derelict 8407 | -6/Extension | Rescued a captive Derelict 8410 | -6/Extension | Rescued A7 8511 | -6/Extension | Build established: Hacker-Mutant 8516 | -6/Extension | Rescued a captive Derelict 8682 | -6/Extension | Rescued a captive Derelict 8683 | -6/Extension | Rescued a captive Derelict 8949 | -6/Extension | Spotted B-75 Beast 8957 | -6/Extension | Spotted B-75 Beast 8958 | -6/Extension | Extracted ID and sensor layout for unrecognized location from A7's data core 8975 | -6/Extension | Allies destroyed B-75 Beast 8979 | -6/Extension | Found Prototype Protection 8979 | -6/Extension | Identified Med. Regenerative Plating 9007 | -6/Extension | Allies destroyed B-75 Beast 9023 | -6/Extension | Lost 7 allies 9026 | -6/Extension | Lost 4 parts (1p3n) 9038 | -6/Extension | Disrupted transfer network 9162 | -6/Extension | Lost 3 allies 9365 | -6/Extension | Build established: Scavenger-Mutant 9633 | -6/Extension | Core integrity fell below 50% 9868 | -6/Extension | Rescued a captive Derelict 9894 | -6/Extension | Rescued a captive Derelict 9932 | -6/Extension | Lost 3 allies 9999 | -6/Extension | Rescued a captive Derelict 10041 | -6/Extension | Discovered new exit (range 10) 10043 | -6/Extension | Discovered new exit (range 6) 10076 | -6/Extension | Entered Cetus 10076 | -6/Cetus | Accompanied by 4 allies 10093 | -6/Cetus | Spotted Cetus Guard 10093 | -6/Cetus | Spotted Cetus Guard 10095 | -6/Cetus | Spotted Cetus Guard 10095 | -6/Cetus | Spotted Cetus Guard 10106 | -6/Cetus | Destroyed Cetus Guard 10118 | -6/Cetus | Destroyed Cetus Guard 10119 | -6/Cetus | Allies destroyed Cetus Guard 10152 | -6/Cetus | Destroyed Cetus Guard 10156 | -6/Cetus | Lost 4 allies 10229 | -6/Cetus | Discovered new exit (range 15) 10656 | -6/Cetus | Discovered new exit (range 16) 10688 | -6/Cetus | Entered Archives 10844 | -6/Archives | Unable to access archive contents 10862 | -6/Archives | Unable to access archive contents 10887 | -6/Archives | Unable to access archive contents 10894 | -6/Archives | Discovered new exit (range 15) 10903 | -6/Archives | Unable to access archive contents 10910 | -6/Archives | Discovered new exit (range 14) 10964 | -6/Archives | Discovered new exit (range 16) 11131 | -6/Archives | Entered Hub_04(d) 11200 | -6/Hub_04(d) | Discovered new exit (range 13) 11244 | -6/Hub_04(d) | Discovered new exit (range 15) 11337 | -6/Hub_04(d) | Entered Factory 11337 | -5/Factory | Evolved 2 slots: Utility x1, Weapon x1 11781 | -5/Factory | Build established: Scavenger-Tank 12170 | -5/Factory | Destroyed 10 combat bots 12312 | -5/Factory | Build established: Scavenger-Gunner 12508 | -5/Factory | Identified exit to Upper Caves 12546 | -5/Factory | Garrison activated, responded to threat 12760 | -5/Factory | Cargo convoy interrupted 12957 | -5/Factory | Entered Upper Caves 12983 | -5/Upper Caves | Attracted the attention of an 0b10 checkpoint 13109 | -5/Upper Caves | Build established: Scavenger-Tank 13237 | -5/Upper Caves | Discovered new exit (range 13) 13270 | -5/Upper Caves | Learned location of Armory (-4) 13275 | -5/Upper Caves | Learned 4 Factory zone layouts 13328 | -5/Upper Caves | Entered another Upper Caves area 13342 | -5/Upper Caves | Learned location of 1 exit from Factory 13358 | -5/Upper Caves | Discovered new exit (range 9) 13726 | -5/Upper Caves | Discovered new exit (range 8) 13742 | -5/Upper Caves | Entered Warlord 13785 | -5/Warlord | System corruption cleaned by Quarantine Array 14005 | -5/Warlord | Met Warlord 14030 | -5/Warlord | Warlord's base attacked by MAIN.C 14292 | -5/Warlord | Spotted B-86 Titan 14292 | -5/Warlord | Warlord forces counterattacked 14327 | -5/Warlord | Discovered new exit (range 12) 14340 | -5/Warlord | Entered Proximity Caves 14346 | -4/Proximity Caves | Lost 4 allies 14422 | -4/Proximity Caves | Spotter reported a threat 14466 | -4/Proximity Caves | Learned Research interactive machine intel 14497 | -4/Proximity Caves | Spotter reported a threat 14588 | -4/Proximity Caves | Spotter reported a threat 14663 | -4/Proximity Caves | Core integrity fell below 50% 14699 | -4/Proximity Caves | Lost 7 parts (3n2u2w) 14809 | -4/Proximity Caves | Lost 3 parts (1n1u1w) 14918 | -4/Proximity Caves | Build established: Scavenger-Gunner 15098 | -4/Proximity Caves | Discovered new exit (range 6) 15110 | -4/Proximity Caves | Entered Factory 15110 | -4/Factory | Evolved 2 slots: Utility x2 15111 | -4/Factory | Identified exit to Research 15243 | -4/Factory | Found Unknown Device 15396 | -4/Factory | Search patrols dispatched 15539 | -4/Factory | Core integrity fell below 50% 15547 | -4/Factory | Core integrity fell below 20% 15573 | -4/Factory | Lost 17 parts (3p2n5u7w) 15597 | -4/Factory | Core destroyed Last Messages --------------- 15545_ R-10 Processor collects Centrium Wheel. 15548_ K-01 Serf collects debris. 15550_ Acquired 38 matter. 15552_ K-01 Serf collects debris. 15556_ System corrupted: Heat flow error (+189). 15564_ Acquired Imp. Gravmag System. 15566_ Acquired Lyr. Medium Armor Plating. 15571_ Acquired Imp. Gravmag System. 15579_ P-70 Sage resets P-70 Sage, system corruption cleaned. 15590_ Slammed into G-67 Veteran. 15591_ Slammed into P-70 Sage. 15592_ Slammed into G-67 Veteran. 15592_ Imp. Target Analyzer broken. 15592_ Destabilizing: Short circuit. 15593_ ALERT: Security rotation in progress. 15593_ Slammed into G-67 Veteran. 15595_ Slammed into G-73 Enforcer. 15596_ Slammed into G-67 Veteran. 15597_ Destabilizing: Core damaged (-57). Map ----- +----------------------------------------------------+ | ?????????????????????????????????????????????????? | | ?????????????????????????????????????????????????? | | ?????????????????????????????????????????????????? | | ?????????????????????????????????????????????????? | | ?????????????????????????????????????????????????? | | ?????????????????????????????????????????????????? | | ?????????????????????????????????????????????????? | | ?????????????????????????????????????????????????? | | ?????????????????????????????????????????????????? | | ?????????????????????????????????????????????????? | | ?????????????????????????????????????????????????? | | ?????????????????????????????????????????????????? | | ?????????????????????????????????????????????????? | | ?????????????????????????????????????????????????? | | ?????????????????????????????????????????????????? | | ?????????????????????????????????????????????????? | | ???????????????????????????????????????########### | | ????????????????########??????########## | | ????????????????# #??????# # | | ????????????????# #??????# [ # | | ????????????????#""" #??????# # | | ????????????????#"Y #??????# ! ! # | | ????????????????#""" #??????# # | | ???????????#####?? [???????# # | | ???????????# #####+##########p # | | ?????????#+#] g@gggpp # | | ?????????# # #####+##########g # | | ?????????# ##???? ????########### | | ??????#### #????? ????# # | | ??????+ #####?? ????# ########### | | ??????#### #?? ????# ! #???????# | | ?????????# #?? ????# #???????# | | ?????????# #?? ????# #???????# | | ?????????#### #??? ?????? #???????# | | ????????????# #??? ???????? #???????# | | ????????????# #??? ?????????? #???????# | | ?????######## #####+#############+########## | | ??? | | ?? | | ??? """" """" """ | | ??? """" """" """ | | ???? """" """" """ | | ????## ############/########## """" """" """ | | ?????# ???????# " #????# """" """" """ | | ?????# ???????# " #????# """" """" """ | | ?????# ????????# ###### | | ?????? ????""" # ] + = | | ???????????# # ]] ###### | | ???????????# ??# ]] =##???# ? | | ???????????? "????# ] |!#????######## ?? | +----------------------------------------------------+ Best States ------------- Heat Dissipation 81 Energy Generation 25 Energy Capacity 350 Matter Stores 300 Matter Capacity 300 Sight Range 22 Robot Scan Range 15 Terrain Scan Density 10 ECM Strength 2 Additional Mass Support 12 Armor Coverage 675 Resistance: KI 25 Core Shielding 30 Weapon Shielding 66 Weapon Cycling 20 Evasion (%) 63 Targeting Accuracy 6 Target Analysis 6 Core Analysis 6 Recoil Reduction 4 Offensive Hacking 32 Defensive Hacking 22 Item Schematics ----------------- Lgt. Regenerative Plating | -7/Data Miner | Free Combat Drone Bay | -7/Data Miner | Free Cld. Cesium-ion Thruster | -7/Data Miner | Free Imp. Heavy Machine Gun | -7/Data Miner | Free Thermal Defense Suite | -7/Data Miner | Free Field Propulsion Drive | -7/Data Miner | Free Adv. System Restoration Module | -7/Data Miner | Free Hvy. Shock Bomb Launcher | -7/Data Miner | Free Gyrokinetic Inverter | -7/Data Miner | Free Adv. Power Amplifier | -7/Data Miner | Free Adv. Melee Analysis Suite | -6/Extension | Hacked Cmb. Airjet | -6/Extension | Hacked Robot Schematics ------------------ G-47 Trooper | -7/Data Miner | Free R-10 Processor | -7/Data Miner | Free L-41 Fighter | -7/Data Miner | Free S-27 Virus | -7/Data Miner | Free I-47 Archangel | -7/Data Miner | Free Fabricated ------------ Nothing Alien Tech Used ----------------- None Achievements -------------- None Challenges ------------ None Game ------ Seed SegregatorArcEngine Manual? 0 Play Time 01:47:26 Cumulative 105.9 hours Start 2024.11.09 @ 18:08:46 End 2024.11.09 @ 19:55:23 Sessions 1 Manual Loads 0 Difficulty Rogue Special Mode None Game No. 130 Rogue 130 Adventurer 0 Explorer 0 Win Type - Total 1 Types 1/0/0/0/0/0/0/0/0 Lore% 62 Gallery% 53 Achievement% 45 Wizard Run 0 Options --------- Layout 1 ASCII 0 Keyboard 1 Movement Numpad Keybinds 0 Fullscreen 1 Font 24/Smallcaps Map View 50x35 Zoom Use 0% Tactical HUD 1 Map Filters NONE Filters NONE Steam 1 RUN: 3cfeed5c-24ea-4940-b8ac-41978a0aad67